bitfinex-derivatives/quotes_BTCF0:USTF0_20250709
["timestamp","ask_amount","ask_price","bid_price","bid_amount"]
[1752049501471,0.51680565,108850.0,108840.0,0.40370651]
[1752049501672,0.49407565,108850.0,108840.0,0.40370651]
[1752049501873,0.52597565,108850.0,108840.0,0.40370651]
[1752049502181,0.54870565,108850.0,108840.0,0.40370651]
[1752049503180,0.52597565,108850.0,108840.0,0.40370651]
[1752049503584,0.52597565,108850.0,108840.0,0.15285052]
[1752049503774,0.52597565,108850.0,108840.0,0.40370651]
[1752049504986,0.52597565,108850.0,108840.0,0.15285052]
[1752049505184,0.52597565,108850.0,108840.0,0.40370651]
[1752049506086,0.27511966,108850.0,108840.0,0.40370651]
[1752049506287,0.52597565,108850.0,108840.0,0.40370651]
[1752049506588,0.27511966,108850.0,108840.0,0.40370651]
[1752049506789,0.52597565,108850.0,108840.0,0.40370651]
[1752049507282,0.52597565,108850.0,108840.0,0.15285052]
[1752049507585,0.52597565,108850.0,108840.0,0.40370651]
[1752049508379,0.52597565,108850.0,108840.0,0.15285052]
[1752049508579,0.52597565,108850.0,108840.0,0.40370651]
[1752049509179,0.52597565,108850.0,108840.0,0.41797506]
[1752049509688,0.52597565,108850.0,108840.0,0.16711907]
[1752049511381,0.52597565,108850.0,108840.0,0.16711326]
[1752049511582,0.52597565,108850.0,108840.0,0.41796925]
[1752049512278,0.52597565,108850.0,108840.0,0.16711326]
[1752049512588,0.27511966,108850.0,108840.0,0.16711326]
[1752049512793,0.52597565,108850.0,108840.0,0.41796925]
[1752049514389,0.27511966,108850.0,108840.0,0.41796925]
[1752049514783,0.52597565,108850.0,108840.0,0.41796925]
[1752049516089,0.52597565,108850.0,108840.0,0.16711326]
[1752049516392,0.52597565,108850.0,108840.0,0.41796925]
[1752049517392,0.27511966,108850.0,108840.0,0.41796925]
[1752049517584,0.52597565,108850.0,108840.0,0.41796925]
[1752049518394,0.27511966,108850.0,108840.0,0.41796925]
[1752049518593,0.52597565,108850.0,108840.0,0.41796925]
[1752049520093,0.52597565,108850.0,108840.0,0.40370669]
[1752049520288,0.52597565,108850.0,108840.0,0.41796928]
[1752049523496,0.52597565,108850.0,108840.0,0.44273928]
[1752049524297,0.52597565,108850.0,108840.0,0.19188329]
[1752049524596,0.52597565,108850.0,108840.0,0.44273928]
[1752049528103,0.27511966,108850.0,108840.0,0.44273928]
[1752049528296,0.52597565,108850.0,108840.0,0.44273928]
[1752049528494,0.52597565,108850.0,108840.0,0.44273929]
[1752049530002,0.27511966,108850.0,108840.0,0.44273929]
[1752049530205,0.52597565,108850.0,108840.0,0.44273929]
[1752049530711,0.52597565,108850.0,108840.0,0.44273911]
[1752049531004,0.27511966,108850.0,108840.0,0.44273911]
[1752049531202,0.52597565,108850.0,108840.0,0.44273911]
[1752049532310,0.27511966,108850.0,108840.0,0.44273911]
[1752049532504,1.16833565,108850.0,108840.0,0.44273911]
[1752049533006,1.16833565,108850.0,108840.0,0.19188312]
[1752049533211,1.16833565,108850.0,108840.0,0.44273911]
[1752049536611,1.16833565,108850.0,108840.0,0.42847651]
[1752049536904,1.16833565,108850.0,108840.0,0.44273498]
[1752049539114,1.16833565,108850.0,108840.0,0.4428555]
[1752049540813,1.16833565,108850.0,108840.0,0.19199951]
[1752049541012,1.16833565,108850.0,108840.0,0.4428555]
[1752049542406,1.16833565,108850.0,108840.0,0.19199951]
[1752049542607,1.16833565,108850.0,108840.0,0.4428555]
[1752049542801,1.16833565,108850.0,108840.0,0.44285667]
[1752049550427,0.91747966,108850.0,108840.0,0.44285667]
[1752049550723,1.16833565,108850.0,108840.0,0.44285667]
[1752049551321,1.16833565,108850.0,108840.0,0.19200068]
[1752049551522,1.16833565,108850.0,108840.0,0.44285667]
[1752049553620,1.15279565,108850.0,108840.0,0.40306667]
[1752049554521,1.15279565,108850.0,108840.0,0.40315787]
[1752049555026,0.90193966,108850.0,108840.0,0.40315787]
[1752049555321,1.15279565,108850.0,108840.0,0.40315787]
[1752049555822,1.15279565,108850.0,108840.0,0.41968787]
[1752049557019,1.15279565,108850.0,108840.0,0.4053382]
[1752049557216,1.15279565,108850.0,108840.0,0.41968796]
[1752049557416,1.15279565,108850.0,108840.0,0.419688]
[1752049558626,1.15279565,108850.0,108840.0,0.37834082]
[1752049558926,1.15279565,108850.0,108840.0,0.41969184]
[1752049559327,1.15279565,108850.0,108840.0,0.44468184]
[1752049560228,1.15279565,108850.0,108840.0,0.389751]
[1752049560529,1.15279565,108850.0,108840.0,0.364761]
[1752049560717,1.15279565,108850.0,108840.0,0.333861]
[1752049561229,0.90193966,108850.0,108840.0,0.333861]
[1752049561431,1.16922565,108850.0,108840.0,0.333861]
[1752049565334,1.16922565,108850.0,108840.0,0.32308681]
[1752049565537,1.16922565,108850.0,108840.0,0.33386095]
[1752049567133,0.91836966,108850.0,108840.0,0.33386095]
[1752049567338,1.16922565,108850.0,108840.0,0.33386095]
[1752049569140,1.16922565,108850.0,108840.0,0.38879179]
[1752049570142,1.16922565,108850.0,108840.0,0.1379358]
[1752049570343,1.16922565,108850.0,108840.0,0.38879179]
[1752049571041,0.91836966,108850.0,108840.0,0.38879179]
[1752049571242,1.16922565,108850.0,108840.0,0.38879179]
[1752049572545,0.91836966,108850.0,108840.0,0.1379358]
[1752049572744,0.91836966,108850.0,108840.0,0.38879179]
[1752049572745,1.16922565,108850.0,108840.0,0.38879179]
[1752049574048,1.19251565,108850.0,108840.0,0.38879179]
[1752049574743,1.19251565,108850.0,108840.0,0.1379358]
[1752049575135,1.19251565,108850.0,108840.0,0.12716161]
[1752049575331,1.19251565,108850.0,108840.0,0.13793615]
[1752049577246,0.94165966,108850.0,108840.0,0.13793615]
[1752049577546,1.19251565,108850.0,108840.0,0.13793615]
[1752049578147,1.19251565,108850.0,108840.0,0.12716161]
[1752049578641,1.19251565,108850.0,108840.0,0.13793589]
[1752049580146,0.94165966,108850.0,108840.0,0.13793589]
[1752049580348,1.19251565,108850.0,108840.0,0.13793589]
[1752049581348,1.19251565,108850.0,108840.0,0.38879188]
[1752049584150,1.19251565,108850.0,108840.0,0.13793589]
[1752049584638,1.19251565,108850.0,108840.0,0.38879188]
[1752049584845,1.17608565,108850.0,108840.0,0.38879188]
[1752049585145,1.17608565,108850.0,108840.0,0.13793589]
[1752049586346,1.17608565,108850.0,108840.0,0.13793587]
[1752049587253,1.17608565,108850.0,108840.0,0.12358601]
[1752049587455,1.17608565,108850.0,108840.0,0.11281175]
[1752049588254,1.17608565,108850.0,108840.0,0.09628175]
[1752049590857,1.17608565,108850.0,108840.0,0.11064741]
[1752049592654,1.17608565,108850.0,108840.0,0.12142166]
[1752049593360,0.92522966,108850.0,108840.0,0.12142166]
[1752049593656,1.19160565,108850.0,108840.0,0.12142166]
[1752049597161,0.94074966,108850.0,108840.0,0.12142166]
[1752049597362,1.19160565,108850.0,108840.0,0.12142166]
[1752049601755,1.15279565,108850.0,108840.0,0.12142166]
[1752049602265,1.15279565,108850.0,108840.0,0.37227765]
[1752049603666,0.90193966,108850.0,108840.0,0.37227765]
[1752049603856,1.16818565,108850.0,108840.0,0.38847765]
[1752049604666,1.19234565,108850.0,108840.0,0.38847765]
[1752049605065,0.94148966,108850.0,108840.0,0.38847765]
[1752049605364,1.19234565,108850.0,108840.0,0.38847765]
[1752049606863,1.18638565,108850.0,108840.0,0.38847765]
[1752049609163,1.18638565,108850.0,108840.0,0.13762166]
[1752049609474,1.18638565,108850.0,108840.0,0.38847765]
[1752049610171,0.93552966,108850.0,108840.0,0.38847765]
[1752049611669,1.18638565,108850.0,108840.0,0.38847765]
[1752049611972,0.54998565,108850.0,108840.0,0.38847765]
[1752049612172,1.18634565,108850.0,108840.0,0.38847765]
[1752049612370,0.93548966,108850.0,108840.0,0.38847765]
[1752049612670,1.18634565,108850.0,108840.0,0.38847765]
[1752049614774,0.54998565,108850.0,108840.0,0.38847765]
[1752049614975,1.18634565,108850.0,108840.0,0.38847765]
[1752049617176,0.54998565,108850.0,108840.0,0.38847765]
[1752049617477,1.18630565,108850.0,108840.0,0.38847627]
[1752049619180,1.16214565,108850.0,108840.0,0.38847627]
[1752049620772,0.91128966,108850.0,108840.0,0.38847626]
[1752049620973,1.16214565,108850.0,108840.0,0.38847626]
[1752049621378,1.14675565,108850.0,108840.0,0.38847626]
[1752049621586,0.51043565,108850.0,108840.0,0.38847626]
[1752049621774,0.89585966,108850.0,108840.0,0.38847626]
[1752049621976,1.14671565,108850.0,108840.0,0.38847626]
[1752049622372,0.51043565,108850.0,108840.0,0.38847626]
[1752049622572,0.91124966,108850.0,108840.0,0.38847626]
[1752049622781,1.16210565,108850.0,108840.0,0.38847626]
[1752049627292,0.52582565,108850.0,108840.0,0.38847626]
[1752049627484,0.8393453,108850.0,108840.0,0.69406225]
[1752049627679,0.8393453,108850.0,108840.0,0.68461272]
[1752049629091,1.09020129,108850.0,108840.0,0.68461191]
[1752049630283,1.09929335,108850.0,108840.0,0.68461191]
[1752049630483,1.09929335,108850.0,108840.0,0.76709848]
[1752049630786,1.13189335,108850.0,108840.0,0.76709848]
[1752049631890,1.13189335,108850.0,108840.0,0.68461191]
[1752049633194,1.13189335,108850.0,108840.0,0.43375592]
[1752049633690,1.13189335,108850.0,108840.0,0.68461191]
[1752049635390,1.13189335,108850.0,108840.0,0.86834131]
[1752049635591,1.12280129,108850.0,108840.0,0.86834131]
[1752049636794,1.12280129,108850.0,108840.0,0.83644131]
[1752049636991,0.8719453,108850.0,108840.0,0.83644131]
[1752049637191,1.12280129,108850.0,108840.0,0.83644131]
[1752049638296,1.12280129,108850.0,108840.0,0.8364403]
[1752049639097,1.12280129,108850.0,108840.0,0.78150946]
[1752049639394,1.12280129,108850.0,108840.0,0.59778006]
[1752049643603,1.10741129,108850.0,108840.0,0.55705006]
[1752049645490,1.13861129,108850.0,108840.0,0.55705006]
[1752049645695,1.13861129,108850.0,108840.0,0.59661006]
[1752049646103,1.13861129,108850.0,108840.0,0.78033946]
[1752049646302,1.13861129,108850.0,108840.0,0.59661006]
[1752049647002,1.13861129,108850.0,108840.0,0.34575407]
[1752049647305,1.13861129,108850.0,108840.0,0.38739647]
[1752049648905,0.8877553,108850.0,108840.0,0.38739647]
[1752049649104,0.9038553,108850.0,108840.0,0.38739647]
[1752049649405,1.15471129,108850.0,108840.0,0.38739647]
[1752049650304,1.15471129,108850.0,108840.0,0.38739662]
[1752049651501,1.15471129,108850.0,108840.0,0.34609416]
[1752049651703,1.15471129,108850.0,108840.0,0.38739602]
[1752049651895,0.9038553,108850.0,108840.0,0.38739602]
[1752049652100,1.15471129,108850.0,108840.0,0.38739602]
[1752049656111,1.15471129,108850.0,108840.0,0.34609416]
[1752049656312,1.15471129,108850.0,108840.0,0.34609429]
[1752049656712,1.15471129,108850.0,108840.0,0.52982369]
[1752049656905,1.15471129,108850.0,108840.0,0.62148028]
[1752049657412,1.13861129,108850.0,108840.0,0.62148028]
[1752049657613,1.13861129,108850.0,108840.0,0.80520968]
[1752049657614,0.2515153,108850.0,108840.0,0.80520968]
[1752049657916,1.13817129,108850.0,108840.0,0.80520968]
[1752049658116,1.13817129,108850.0,108840.0,0.83590968]
[1752049658507,1.13817129,108850.0,108840.0,0.1504683]
[1752049658707,1.13817129,108850.0,108840.0,0.40132429]
[1752049659217,1.13817129,108850.0,108840.0,0.40132423]
[1752049662117,1.13817129,108850.0,108840.0,0.39055071]
[1752049662321,1.13817129,108850.0,108840.0,0.40132423]
[1752049663520,1.13817129,108850.0,108840.0,0.58505363]
[1752049663821,0.8873153,108850.0,108840.0,0.83590962]
[1752049664019,0.9032853,108850.0,108840.0,0.83590962]
[1752049667721,1.15414129,108850.0,108840.0,0.83590962]
[1752049669723,1.15398129,108850.0,108840.0,0.83590962]
[1752049669931,0.9031253,108850.0,108840.0,0.83590962]
[1752049670933,0.2674853,108850.0,108840.0,0.83590962]
[1752049671224,0.2674853,108850.0,108840.0,0.84511088]
[1752049671416,0.9030853,108850.0,108840.0,0.8451108]
[1752049672227,0.9030853,108850.0,108840.0,0.83590954]
[1752049673222,0.51834129,108850.0,108840.0,0.83590954]
[1752049673728,1.15390129,108850.0,108840.0,0.83590954]
[1752049674933,1.15390129,108850.0,108840.0,0.84494107]
[1752049675133,0.2036853,108850.0,108840.0,1.22494107]
[1752049675332,0.8232353,108850.0,108840.0,1.20694107]
[1752049675729,0.8232353,108850.0,108840.0,0.87694107]
[1752049675938,0.8232353,108850.0,108840.0,1.24694107]
[1752049676935,0.8231953,108850.0,108840.0,1.22694107]
[1752049677439,0.8231953,108850.0,108840.0,1.30954599]
[1752049678431,0.8391653,108850.0,108840.0,1.30954599]
[1752049681647,0.8231953,108850.0,108840.0,1.30954599]
[1752049681834,0.1877125,108850.0,108840.0,1.20694107]
[1752049682034,0.004,108850.0,108840.0,1.48533204]
[1752049682339,0.8230725,108850.0,108840.0,1.485331]
[1752049682539,0.63936,108850.0,108840.0,1.54038595]
[1752049682941,0.004,108850.0,108840.0,1.485331]
[1752049683846,0.001,108850.0,108840.0,1.485331]
[1752049684047,0.001,108850.0,108840.0,1.486331]
[1752049684247,0.9109239,108860.0,108850.0,0.1837125]
[1752049684442,0.9109239,108860.0,108850.0,1.22642903]
[1752049684747,0.9109239,108860.0,108850.0,1.29177365]
[1752049684942,0.8649956,108860.0,108850.0,1.29177365]
[1752049685243,0.2296356,108860.0,108850.0,1.29177365]
[1752049685444,0.8649556,108860.0,108850.0,1.29177281]
[1752049686638,0.8190298,108860.0,108850.0,1.29177281]
[1752049686838,0.8190298,108860.0,108850.0,1.23674574]
[1752049687035,0.8190298,108860.0,108850.0,1.29172655]
[1752049687240,0.8190298,108860.0,108850.0,1.92700655]
[1752049688346,0.63532,108860.0,108850.0,1.92700655]
[1752049689350,0.8190156,108860.0,108850.0,1.92700655]
[1752049689851,0.63532,108860.0,108850.0,1.92700655]
[1752049691355,0.8190156,108860.0,108850.0,1.92700655]
[1752049692154,0.8190156,108860.0,108850.0,1.92700366]
[1752049694058,0.63532,108860.0,108850.0,1.92700366]
[1752049694259,0.41173515,108870.0,108860.0,0.1836957]
[1752049694458,1.01686245,108870.0,108860.0,1.0763259]
[1752049694653,1.01686245,108870.0,108860.0,1.1319159]
[1752049694959,0.38178245,108870.0,108860.0,1.1319159]
[1752049695159,0.38178245,108870.0,108860.0,1.18689671]
[1752049695160,1.01682245,108870.0,108860.0,1.18689671]
[1752049695360,0.33586215,108870.0,108860.0,1.18689671]
[1752049695561,0.97190215,108870.0,108860.0,1.18689671]
[1752049695763,0.97190215,108870.0,108860.0,1.19766748]
[1752049696152,0.28939215,108870.0,108860.0,1.19766748]
[1752049696352,0.92443215,108870.0,108860.0,1.22766748]
[1752049696855,0.74273895,108870.0,108860.0,1.22766748]
[1752049697058,0.10769895,108870.0,108860.0,1.22766748]
[1752049698159,0.10769895,108870.0,108860.0,1.26907615]
[1752049698357,0.07439895,108870.0,108860.0,1.51993155]
[1752049698550,0.69986,108880.0,108870.0,0.1836788]
[1752049698754,0.2485619,108880.0,108870.0,1.22676012]
[1752049698961,0.0649,108880.0,108870.0,1.22676012]
[1752049699365,0.2485619,108880.0,108870.0,1.23752952]
[1752049699558,0.2645319,108880.0,108870.0,0.82263959]
[1752049699868,0.2645319,108880.0,108870.0,1.20636208]
[1752049700258,0.2645319,108880.0,108870.0,0.95550609]
[1752049700959,0.2645319,108880.0,108870.0,1.59042609]
[1752049701159,0.2645319,108880.0,108870.0,1.84128208]
[1752049702265,0.2645319,108880.0,108870.0,1.88240964]
[1752049703161,0.2645319,108880.0,108870.0,1.84128208]
[1752049703361,0.2645319,108880.0,108870.0,1.88240621]
[1752049706562,0.2645319,108880.0,108870.0,1.84114926]
[1752049706866,0.2645319,108880.0,108870.0,1.88227276]
[1752049707068,0.2645319,108880.0,108870.0,1.84114926]
[1752049712473,0.2645319,108880.0,108870.0,1.92375414]
[1752049712867,0.2645319,108880.0,108870.0,1.84114922]
[1752049713168,0.2645319,108880.0,108870.0,1.92375414]
[1752049724384,0.2645319,108880.0,108870.0,1.86886421]
[1752049730790,0.2645319,108880.0,108870.0,1.86899414]
[1752049733591,0.2645319,108880.0,108870.0,1.85463503]
[1752049733893,0.2645319,108880.0,108870.0,1.86899414]
[1752049734391,0.2645319,108880.0,108870.0,1.78638922]
[1752049735187,0.2645319,108880.0,108870.0,1.89652911]
[1752049736893,0.2645319,108880.0,108870.0,1.78638922]
[1752049739894,0.2645319,108880.0,108870.0,1.28467724]
[1752049740194,0.2645319,108880.0,108870.0,1.78638922]
[1752049740996,0.2645319,108880.0,108870.0,1.8689287]
[1752049741588,0.2485619,108880.0,108870.0,1.78638922]
[1752049741990,0.2485619,108880.0,108870.0,1.86892871]
[1752049742690,0.1836586,108890.0,108880.0,0.1836619]
[1752049742896,0.0644,108900.0,108890.0,0.183645]
[1752049743192,0.2633982,108900.0,108890.0,1.1981125]
[1752049743396,0.8973982,108900.0,108890.0,1.1981125]
[1752049743580,0.8820282,108900.0,108890.0,1.1981125]
[1752049744093,0.8973982,108900.0,108890.0,1.1981125]
[1752049744294,0.9003982,108900.0,108890.0,1.1981125]
[1752049744495,0.9003982,108900.0,108890.0,0.94725651]
[1752049745188,0.9033982,108900.0,108890.0,0.94725651]
[1752049745389,0.9033982,108900.0,108890.0,0.86471702]
[1752049746096,0.9033982,108900.0,108890.0,1.11557301]
[1752049747187,0.9033982,108900.0,108890.0,0.86471702]
[1752049748996,0.9033982,108900.0,108890.0,0.86471628]
[1752049750890,0.9033982,108900.0,108890.0,0.53041628]
[1752049751101,0.9033982,108900.0,108890.0,0.57204023]
[1752049751396,1.15425419,108900.0,108890.0,0.55583023]
[1752049751595,1.15425419,108900.0,108890.0,0.59520023]
[1752049752192,1.15425419,108900.0,108890.0,0.58084112]
[1752049752394,0.9033982,108900.0,108890.0,0.59519876]
[1752049758097,0.9033982,108900.0,108890.0,0.59519878]
[1752049761497,0.9033982,108900.0,108890.0,0.59519922]
[1752049762300,0.9033982,108900.0,108890.0,0.55401527]
[1752049762698,0.9033982,108900.0,108890.0,0.55401525]
[1752049766110,0.9033982,108900.0,108890.0,0.37037025]
[1752049766301,0.9033982,108900.0,108890.0,0.55401525]
[1752049767306,0.9033982,108900.0,108890.0,0.63655479]
[1752049770209,0.9033982,108900.0,108890.0,0.63655474]
[1752049772211,0.9033982,108900.0,108890.0,0.58153635]
[1752049772403,0.9033982,108900.0,108890.0,0.63651869]
[1752049779106,0.9033982,108900.0,108890.0,0.63651874]
[1752049782226,0.9033982,108900.0,108890.0,0.63651878]
[1752049782818,0.9033982,108900.0,108890.0,0.58153644]
[1752049784025,0.9033982,108900.0,108890.0,0.63652885]
[1752049785118,0.9033982,108900.0,108890.0,0.63652886]
[1752049791123,0.9033982,108900.0,108890.0,0.66812878]
[1752049793020,0.9033982,108900.0,108890.0,1.01812878]
[1752049795825,0.8377182,108900.0,108890.0,1.26898477]
[1752049796024,0.8377182,108900.0,108890.0,1.05022878]
[1752049798932,0.8376382,108900.0,108890.0,1.30108477]
[1752049800033,0.8376382,108900.0,108890.0,1.20479277]
[1752049800431,0.1896282,108900.0,108890.0,1.27690344]
[1752049800627,0.31221737,108910.0,108900.0,0.1836282]
[1752049800834,0.94477737,108910.0,108900.0,1.1542677]
[1752049801026,0.31221737,108910.0,108900.0,1.1542677]
[1752049801231,0.8620904,108910.0,108900.0,1.1542677]
[1752049801529,0.8620904,108910.0,108900.0,1.20926011]
[1752049801734,0.8620904,108910.0,108900.0,1.19490249]
[1752049802036,0.8670904,108910.0,108900.0,1.2092584]
[1752049802237,0.8710904,108910.0,108900.0,1.2102584]
[1752049803335,0.8710904,108910.0,108900.0,1.15526599]
[1752049803735,0.8812704,108910.0,108900.0,1.15526599]
[1752049804835,0.8812704,108910.0,108900.0,1.15526572]
[1752049805136,0.8812704,108910.0,108900.0,1.16603245]
[1752049805538,0.9130704,108910.0,108900.0,0.83948245]
[1752049805738,0.9130704,108910.0,108900.0,0.85603245]
[1752049806540,0.9090704,108910.0,108900.0,0.85603245]
[1752049806742,0.9090704,108910.0,108900.0,0.82563245]
[1752049807239,0.9414704,108910.0,108900.0,0.82563245]
[1752049809241,0.9420804,108910.0,108900.0,0.82358245]
[1752049809433,0.9262904,108910.0,108900.0,0.82358245]
[1752049809635,0.9420804,108910.0,108900.0,0.82358245]
[1752049810843,0.9420804,108910.0,108900.0,0.81281572]
[1752049811846,0.9420804,108910.0,108900.0,0.77157582]
[1752049813746,0.9420804,108910.0,108900.0,0.78234253]
[1752049813948,0.9420804,108910.0,108900.0,1.09234253]
[1752049817755,1.02476737,108910.0,108900.0,1.08157582]
[1752049818240,1.00897737,108910.0,108900.0,1.06611582]
[1752049818554,1.00897737,108910.0,108900.0,1.12611582]
[1752049821852,0.9262904,108910.0,108900.0,1.1672821]
[1752049822052,0.9420804,108910.0,108900.0,1.1672821]
[1752049824148,0.9420804,108910.0,108900.0,0.66557012]
[1752049824348,0.9420804,108910.0,108900.0,1.1827421]
[1752049825753,0.9420804,108910.0,108900.0,1.1935088]
[1752049827556,0.9420804,108910.0,108900.0,1.19350877]
[1752049831258,0.9420804,108910.0,108900.0,1.24850118]
[1752049831958,0.9262904,108910.0,108900.0,1.24850118]
[1752049832351,0.9420804,108910.0,108900.0,1.24850118]
[1752049833552,0.9420804,108910.0,108900.0,1.23773448]
[1752049838163,0.9420804,108910.0,108900.0,1.23773447]
[1752049846267,0.9420804,108910.0,108900.0,1.24850115]
[1752049849075,0.9420804,108910.0,108900.0,1.24850112]
[1752049850673,0.9420804,108910.0,108900.0,1.23773444]
[1752049851775,0.9420804,108910.0,108900.0,1.27910765]
[1752049853477,0.9420804,108910.0,108900.0,1.28987433]
[1752049854177,0.9420804,108910.0,108900.0,0.78816235]
[1752049854378,0.9420804,108910.0,108900.0,1.28987433]
[1752049857777,0.9420804,108910.0,108900.0,0.78816235]
[1752049857980,0.9420804,108910.0,108900.0,1.28987433]
[1752049860579,0.9405204,108910.0,108900.0,1.28987433]
[1752049860779,1.1412504,108910.0,108900.0,1.28987433]
[1752049861074,1.1412504,108910.0,108900.0,1.32127433]
[1752049861782,1.1412504,108910.0,108900.0,1.22498615]
[1752049862282,1.0930604,108910.0,108900.0,1.22498615]
[1752049862782,1.0930604,108910.0,108900.0,1.2249861]
[1752049865682,1.0930604,108910.0,108900.0,1.22498505]
[1752049870676,1.0469013,108910.0,108900.0,1.22498505]
[1752049871391,1.0469013,108910.0,108900.0,1.22498493]
[1752049871883,1.0469013,108910.0,108900.0,1.23873467]
[1752049872282,0.86329,108910.0,108900.0,1.23873467]
[1752049872689,0.87935,108910.0,108900.0,1.22437927]
[1752049872891,1.0629613,108910.0,108900.0,1.23873466]
[1752049874489,1.0629613,108910.0,108900.0,1.23873465]
[1752049875594,1.0629613,108910.0,108900.0,1.32127414]
[1752049876292,1.0629613,108910.0,108900.0,1.95195414]
[1752049878897,1.0629613,108910.0,108900.0,1.86941465]
[1752049879497,1.0629613,108910.0,108900.0,1.95195414]
[1752049881898,1.0629613,108910.0,108900.0,1.92055414]
[1752049883505,1.0629613,108910.0,108900.0,1.82724797]
[1752049885315,1.0629613,108910.0,108900.0,1.90978746]
[1752049886113,1.0629613,108910.0,108900.0,1.90978747]
[1752049886307,1.0947613,108910.0,108900.0,1.90978747]
[1752049887316,1.0947613,108910.0,108900.0,1.53978747]
[1752049887508,1.0947613,108910.0,108900.0,1.85978747]
[1752049893417,1.0947613,108910.0,108900.0,1.87055402]
[1752049895320,1.0947613,108910.0,108900.0,1.01550204]
[1752049895511,1.0947613,108910.0,108900.0,1.51721402]
[1752049897317,1.0947613,108910.0,108900.0,0.88697402]
[1752049898015,1.0947613,108910.0,108900.0,0.88697445]
[1752049898316,2.30513727,108910.0,108900.0,0.01435582]
[1752049898524,0.045907,108900.0,108870.0,0.01775708]
[1752049898705,0.0459208,108870.0,108860.0,0.25085599]
[1752049898910,0.0459208,108870.0,108860.0,0.44996169]
[1752049898911,1.21444219,108870.0,108860.0,0.44996169]
[1752049899107,1.13482353,108870.0,108850.0,0.05617]
[1752049899417,0.46545169,108860.0,108850.0,0.52641729]
[1752049899603,0.47743169,108860.0,108850.0,0.56629729]
[1752049900217,0.67816169,108860.0,108850.0,0.56629729]
[1752049902020,0.71036169,108860.0,108850.0,0.56729729]
[1752049902809,0.4595057,108860.0,108850.0,0.56729729]
[1752049903120,0.71036169,108860.0,108850.0,0.56729729]
[1752049904521,0.71036169,108860.0,108850.0,0.56929729]
[1752049905721,0.4595057,108860.0,108850.0,0.56929729]
[1752049906024,0.71036169,108860.0,108850.0,0.56929729]
[1752049911825,0.69838169,108860.0,108850.0,0.56929729]
[1752049912019,0.71036169,108860.0,108850.0,0.56929729]
[1752049912733,0.4475257,108860.0,108850.0,0.56929729]
[1752049913021,0.69838169,108860.0,108850.0,0.56929729]
[1752049913225,0.71036169,108860.0,108850.0,0.59969729]
[1752049914421,0.71036169,108860.0,108850.0,0.3488413]
[1752049914614,0.71036169,108860.0,108850.0,0.3184413]
[1752049914817,0.71036169,108860.0,108850.0,0.56929729]
[1752049916720,0.4595057,108860.0,108850.0,0.60179729]
[1752049916920,0.71036169,108860.0,108850.0,0.60179729]
[1752049917220,0.74381575,108860.0,108850.0,0.60179729]
[1752049918625,0.74381575,108860.0,108850.0,0.3509413]
[1752049918824,0.74381575,108860.0,108850.0,0.60179729]
[1752049920330,0.71036169,108860.0,108850.0,0.60179729]
[1752049923332,0.4595057,108860.0,108850.0,0.60179729]
[1752049923532,1.34036169,108860.0,108850.0,0.60179729]
[1752049923938,0.71036169,108860.0,108850.0,0.60179729]
[1752049924131,1.37386773,108860.0,108850.0,0.60179729]
[1752049928536,1.37386773,108860.0,108850.0,0.61256942]
[1752049933332,1.12301174,108860.0,108850.0,0.36171343]
[1752049933532,1.37386773,108860.0,108850.0,0.61256942]
[1752049938940,1.12301174,108860.0,108850.0,0.61256942]
[1752049939144,1.37386773,108860.0,108850.0,0.61256942]
[1752049942147,1.37386773,108860.0,108850.0,0.6125695]
[1752049944549,0.49301174,108860.0,108850.0,0.6125695]
[1752049944750,1.37354773,108860.0,108850.0,0.6125695]
[1752049945554,1.37354773,108860.0,108850.0,0.62693234]
[1752049949553,1.37354773,108860.0,108850.0,0.37607635]
[1752049949752,1.37354773,108860.0,108850.0,0.62693234]
[1752049951356,0.74386773,108860.0,108850.0,0.62693234]
[1752049951554,1.04749174,108860.0,108850.0,0.87778833]
[1752049951747,1.04749174,108860.0,108850.0,0.91048833]
[1752049952254,1.04749174,108860.0,108850.0,0.65963234]
[1752049952560,0.41793174,108860.0,108850.0,0.65963234]
[1752049952756,1.04749174,108860.0,108850.0,0.65963234]
[1752049953259,1.04749174,108860.0,108850.0,0.64886013]
[1752049953460,1.04749174,108860.0,108850.0,0.65963146]
[1752049956256,1.04749174,108860.0,108850.0,0.64526882]
[1752049956457,1.04749174,108860.0,108850.0,0.65963086]
[1752049960559,0.86367604,108860.0,108850.0,0.96963086]
[1752049960757,0.86367604,108860.0,108850.0,1.22048685]
[1752049961259,0.23423604,108860.0,108850.0,1.84992685]
[1752049961957,0.23423604,108860.0,108850.0,1.93197411]
[1752049962158,0.23423604,108860.0,108850.0,1.92120258]
[1752049962359,0.23423604,108860.0,108850.0,1.93197281]
[1752049965257,0.20073,108860.0,108850.0,1.93197281]
[1752049965561,0.88623914,108870.0,108860.0,0.1836956]
[1752049965562,0.07316014,108870.0,108860.0,0.1836956]
[1752049965756,0.35818126,108890.0,108880.0,0.1836619]
[1752049966060,0.3333726,108890.0,108880.0,0.74928504]
[1752049966256,0.3641726,108890.0,108880.0,0.77948504]
[1752049966558,0.3641726,108890.0,108880.0,1.10948504]
[1752049966758,0.3641726,108890.0,108880.0,0.85838433]
[1752049967164,0.3641726,108890.0,108880.0,0.52838433]
[1752049967565,0.3671726,108890.0,108880.0,0.89838433]
[1752049968059,0.3671726,108890.0,108880.0,0.89838055]
[1752049968459,0.3681726,108890.0,108880.0,0.89838055]
[1752049968663,0.5689026,108890.0,108880.0,0.89838055]
[1752049969062,0.5659026,108890.0,108880.0,0.52838055]
[1752049969565,0.5199886,108890.0,108880.0,0.52838055]
[1752049972368,0.5199886,108890.0,108880.0,0.85838055]
[1752049972564,0.5199886,108890.0,108880.0,0.52838055]
[1752049973570,0.5199886,108890.0,108880.0,0.51761143]
[1752049975065,0.24451,108890.0,108880.0,0.51761143]
[1752049975266,0.24451,108890.0,108880.0,0.54981143]
[1752049975770,0.23253,108890.0,108880.0,0.90981143]
[1752049976677,0.23253,108890.0,108880.0,0.91181143]
[1752049976880,0.23153,108890.0,108880.0,0.91281143]
[1752049977078,0.23153,108890.0,108880.0,0.91281088]
[1752049978078,0.415175,108890.0,108880.0,0.91281088]
[1752049978274,0.427155,108890.0,108880.0,0.91281088]
[1752049978475,0.415175,108890.0,108880.0,0.9221308]
[1752049979070,0.427155,108890.0,108880.0,0.9221308]
[1752049980079,0.20073,108890.0,108880.0,0.8821308]
[1752049983178,0.384375,108890.0,108880.0,0.8821308]
[1752049983577,0.384375,108890.0,108880.0,0.89289824]
[1752049984682,0.416975,108890.0,108880.0,0.89289824]
[1752049984980,0.416975,108890.0,108880.0,0.89289826]
[1752049986780,0.416975,108890.0,108880.0,0.85411826]
[1752049986984,0.416975,108890.0,108880.0,0.89289826]
[1752049990685,0.416975,108890.0,108880.0,0.8821308]
[1752049990885,0.428955,108890.0,108880.0,1.14348555]
[1752049993586,0.428955,108890.0,108880.0,1.14348557]
[1752049994177,0.428955,108890.0,108880.0,1.19844321]
[1752049999687,0.428955,108890.0,108880.0,1.19844283]
[1752050000991,0.428955,108890.0,108880.0,0.87844283]
[1752050001889,0.428955,108890.0,108880.0,0.82348519]